fUST/lending_fUST_20250628
["ID","MTS","AMOUNT","RATE_DAILY","PERIOD"]
[368301687,1751103040847,-460.0,0.00019452,2]
[368301689,1751103040857,-460.0,0.00019452,2]
[368301691,1751103040866,-540.0,0.00019452,2]
[368301693,1751103040877,-460.0,0.00019452,2]
[368301695,1751103040887,-460.0,0.00019452,2]
[368301697,1751103040897,-460.0,0.00019452,2]
[368301699,1751103040906,-460.0,0.00019452,2]
[368301701,1751103040915,-460.0,0.00019452,2]
[368301703,1751103040925,-460.0,0.00019452,2]
[368301705,1751103040934,-353.9570688,0.00019452,2]
[368301707,1751103040944,-657.06,0.00019452,2]
[368301709,1751103040953,-460.0,0.00019452,2]
[368301711,1751103040963,-460.0,0.00019452,2]
[368301713,1751103040972,-167.8195284,0.00019452,2]
[368301715,1751103040981,-460.0,0.00019452,2]
[368301717,1751103040990,-460.0,0.00019452,2]
[368301719,1751103041003,-460.0,0.00019452,2]
[368301721,1751103041013,-460.0,0.00019452,2]
[368301723,1751103041022,-433.46174028,0.00019452,2]
[368301725,1751103041032,-460.0,0.00019452,2]
[368301727,1751103041041,-460.0,0.00019452,2]
[368301729,1751103041051,-887.07,0.00019452,2]
[368301731,1751103041060,-460.0,0.00019452,2]
[368301733,1751103041069,-460.0,0.00019452,2]
[368301750,1751103041226,-460.0,0.00019452,2]
[368301751,1751103041257,-1946.55,0.00019452,2]
[368301752,1751103041266,-1074.55,0.00019452,2]
[368301753,1751103041275,-487.55,0.00019452,2]
[368301754,1751103041286,-460.0,0.00019452,2]
[368301755,1751103041296,-515.69,0.00019452,2]
[368301756,1751103041306,-460.0,0.00019452,2]
[368301757,1751103041316,-479.22,0.00019452,2]
[368301758,1751103041325,-570.58,0.00019452,2]
[368301759,1751103041335,-1279.61,0.00019452,2]
[368301760,1751103041344,-460.0,0.00019452,2]
[368301761,1751103041354,-752.69,0.00019452,2]
[368301762,1751103041363,-460.0,0.00019452,2]
[368301763,1751103041374,-1963.7,0.00019452,2]
[368301764,1751103041384,-460.0,0.00019452,2]
[368301765,1751103041395,-460.0,0.00019452,2]
[368301766,1751103041406,-2122.16,0.00019452,2]
[368301767,1751103041417,-460.0,0.00019452,2]
[368301768,1751103041426,-460.0,0.00019452,2]
[368301769,1751103041435,-460.0,0.00019452,2]
[368301770,1751103041445,-790.9,0.00019452,2]
[368301771,1751103041455,-2408.36,0.00019452,2]
[368301772,1751103041466,-460.0,0.00019452,2]
[368301773,1751103041475,-580.0,0.00019452,2]
[368301774,1751103041485,-1799.67,0.00019452,2]
[368301775,1751103041495,-460.0,0.00019452,2]
[368301776,1751103041505,-460.0,0.00019452,2]
[368301777,1751103041514,-460.0,0.00019452,2]
[368301778,1751103041522,-460.0,0.00019452,2]
[368301779,1751103041532,-460.0,0.00019452,2]
[368301780,1751103041541,-1694.8,0.00019452,2]
[368301781,1751103041550,-460.0,0.00019452,2]
[368301782,1751103041558,-460.0,0.00019452,2]
[368301783,1751103041568,-460.0,0.00019452,2]
[368301784,1751103041579,-460.0,0.00019452,2]
[368301785,1751103041588,-460.0,0.00019452,2]
[368301786,1751103041598,-1226.43,0.00019452,2]
[368301787,1751103041607,-460.0,0.00019452,2]
[368301788,1751103041617,-460.0,0.00019452,2]
[368301789,1751103041627,-460.0,0.00019452,2]
[368301790,1751103041636,-2755.62,0.00019452,2]
[368301791,1751103041645,-1526.94,0.00019452,2]
[368301792,1751103041654,-460.0,0.00019452,2]
[368301793,1751103041662,-460.0,0.00019452,2]
[368301794,1751103041671,-312.71497975,0.00019452,2]
[368301795,1751103041681,-460.0,0.00019452,2]
[368301796,1751103041690,-1147.67,0.00019452,2]
[368301797,1751103041699,-460.0,0.00019452,2]
[368301798,1751103041709,-460.0,0.00019452,2]
[368301799,1751103041718,-1305.24,0.00019452,2]
[368301800,1751103041728,-1126.91,0.00019452,2]
[368301801,1751103041737,-781.08,0.00019452,2]
[368301802,1751103041747,-3744.68,0.00019452,2]
[368301803,1751103041758,-460.0,0.00019452,2]
[368301804,1751103041767,-735.21,0.00019452,2]
[368301805,1751103041778,-460.0,0.00019452,2]
[368301806,1751103041787,-2137.25,0.00019452,2]
[368301807,1751103041797,-2789.0,0.00019479,2]
[368301808,1751103041806,-2789.0,0.00019506,2]
[368301809,1751103041816,-2789.0,0.00019534,2]
[368301810,1751103041825,-2789.0,0.00019561,2]
[368301811,1751103041835,-2789.0,0.00019588,2]
[368301812,1751103041844,-2789.0,0.00019616,2]
[368301813,1751103041855,-2789.0,0.00019643,2]
[368301814,1751103041864,-2789.0,0.00019671,2]
[368301815,1751103041873,-2789.0,0.00019698,2]
[368301816,1751103041883,-2789.0,0.00019725,2]
[368301817,1751103041892,-460.0,0.00019726,2]
[368301818,1751103041902,-460.0,0.00019726,2]
[368301819,1751103041911,-460.0,0.00019726,2]
[368301820,1751103041920,-460.0,0.00019726,2]
[368301821,1751103041929,-460.0,0.00019726,2]
[368301822,1751103041939,-460.0,0.00019726,2]
[368301823,1751103041948,-460.0,0.00019726,2]
[368301824,1751103041958,-657.06,0.00019726,2]
[368301825,1751103041968,-460.0,0.00019726,2]
[368301826,1751103041977,-460.0,0.00019726,2]
[368301827,1751103041988,-460.0,0.00019726,2]
[368301828,1751103041997,-460.0,0.00019726,2]
[368301829,1751103042007,-460.0,0.00019726,2]
[368301830,1751103042016,-887.07,0.00019726,2]
[368301831,1751103042026,-460.0,0.00019726,2]
[368301832,1751103042035,-460.0,0.00019726,2]
[368301833,1751103042045,-460.0,0.00019726,2]
[368301834,1751103042054,-1946.55,0.00019726,2]
[368301835,1751103042064,-1074.55,0.00019726,2]
[368301836,1751103042073,-487.55,0.00019726,2]
[368301837,1751103042083,-515.69,0.00019726,2]
[368301838,1751103042092,-479.22,0.00019726,2]
[368301839,1751103042102,-570.58,0.00019726,2]
[368301840,1751103042111,-1279.61,0.00019726,2]
[368301841,1751103042120,-460.0,0.00019726,2]
[368301842,1751103042130,-752.69,0.00019726,2]
[368301843,1751103042139,-460.0,0.00019726,2]
[368301844,1751103042149,-1963.7,0.00019726,2]
[368301845,1751103042158,-460.0,0.00019726,2]
[368301846,1751103042167,-460.0,0.00019726,2]
[368301847,1751103042177,-2122.16,0.00019726,2]
[368301848,1751103042186,-460.0,0.00019726,2]
[368301849,1751103042195,-460.0,0.00019726,2]
[368301850,1751103042205,-460.0,0.00019726,2]
[368301851,1751103042214,-790.9,0.00019726,2]
[368301852,1751103042224,-2408.36,0.00019726,2]
[368301853,1751103042233,-460.0,0.00019726,2]
[368301854,1751103042247,-580.0,0.00019726,2]
[368301855,1751103042257,-1799.67,0.00019726,2]
[368301856,1751103042267,-460.0,0.00019726,2]
[368301857,1751103042276,-460.0,0.00019726,2]
[368301858,1751103042285,-460.0,0.00019726,2]
[368301859,1751103042294,-460.0,0.00019726,2]
[368301860,1751103042303,-460.0,0.00019726,2]
[368301861,1751103042312,-1694.8,0.00019726,2]
[368301862,1751103042321,-460.0,0.00019726,2]
[368301863,1751103042331,-460.0,0.00019726,2]
[368301864,1751103042341,-460.0,0.00019726,2]
[368301865,1751103042351,-460.0,0.00019726,2]
[368301866,1751103042362,-460.0,0.00019726,2]
[368301867,1751103042371,-1226.43,0.00019726,2]
[368301868,1751103042381,-460.0,0.00019726,2]
[368301869,1751103042392,-460.0,0.00019726,2]
[368301870,1751103042402,-460.0,0.00019726,2]
[368301871,1751103042411,-2755.62,0.00019726,2]
[368301872,1751103042420,-1526.94,0.00019726,2]
[368301873,1751103042429,-460.0,0.00019726,2]
[368301874,1751103042439,-460.0,0.00019726,2]
[368301875,1751103042448,-1147.67,0.00019726,2]
[368301876,1751103042457,-460.0,0.00019726,2]
[368301877,1751103042466,-460.0,0.00019726,2]
[368301878,1751103042475,-1305.24,0.00019726,2]
[368301879,1751103042486,-1126.91,0.00019726,2]
[368301880,1751103042496,-781.08,0.00019726,2]
[368301881,1751103042506,-3744.68,0.00019726,2]
[368301882,1751103042515,-460.0,0.00019726,2]
[368301883,1751103042525,-735.21,0.00019726,2]
[368301884,1751103042535,-460.0,0.00019726,2]
[368301885,1751103042547,-2137.25,0.00019726,2]
[368301886,1751103042557,-500.0,0.00019736,2]
[368301887,1751103042567,-500.0,0.00019748,2]
[368301888,1751103042576,-2789.0,0.00019753,2]
[368301889,1751103042585,-500.0,0.0001976,2]
[368301890,1751103042595,-2789.0,0.0001978,2]
[368301891,1751103042604,-288.66192114,0.00019783,2]
[368301892,1751103042614,-226.77747217,0.00019783,2]
[368301893,1751103042623,-512.10269403,0.00019783,2]
[368301894,1751103042632,-443.30882593,0.00019783,2]
[368301895,1751103042642,-500.0,0.00019787,2]
[368301896,1751103042651,-500.0,0.000198,2]
[368301897,1751103042660,-2789.0,0.00019808,2]
[368301898,1751103042670,-2789.0,0.00019835,2]
[368301899,1751103042680,-2789.0,0.00019862,2]
[368301900,1751103042689,-2789.0,0.0001989,2]
[368301901,1751103042698,-7839.96488609,0.000199,2]
[368301902,1751103042707,-2812.62538489,0.00019917,2]
[368301903,1751103042717,-420.0,0.00019974,2]
[368301904,1751103042727,-460.0,0.0002,2]
[368301905,1751103042736,-460.0,0.0002,2]
[368301906,1751103042746,-460.0,0.0002,2]
[368301907,1751103042755,-460.0,0.0002,2]
[368301908,1751103042764,-460.0,0.0002,2]
[368301909,1751103042774,-460.0,0.0002,2]
[368301910,1751103042783,-460.0,0.0002,2]
[368301911,1751103042793,-657.06,0.0002,2]
[368301912,1751103042802,-460.0,0.0002,2]
[368301913,1751103042811,-438.28632599,0.0002,2]
[368301914,1751103042820,-460.0,0.0002,2]
[368301915,1751103042830,-460.0,0.0002,2]
[368301916,1751103042839,-887.07,0.0002,2]
[368301917,1751103042849,-460.0,0.0002,2]
[368301918,1751103042859,-460.0,0.0002,2]
[368301919,1751103042868,-460.0,0.0002,2]
[368301920,1751103042879,-1946.55,0.0002,2]
[368301921,1751103042889,-1074.55,0.0002,2]
[368301922,1751103042898,-487.55,0.0002,2]
[368301923,1751103042908,-515.69,0.0002,2]
[368301924,1751103042918,-479.22,0.0002,2]
[368301925,1751103042927,-570.58,0.0002,2]
[368301926,1751103042937,-1279.61,0.0002,2]
[368301927,1751103042946,-460.0,0.0002,2]
[368301929,1751103042957,-752.69,0.0002,2]
[368301930,1751103042967,-460.0,0.0002,2]
[368301931,1751103042976,-1963.7,0.0002,2]
[368301932,1751103042985,-460.0,0.0002,2]
[368301933,1751103042994,-460.0,0.0002,2]
[368301934,1751103043003,-2122.16,0.0002,2]
[368301935,1751103043013,-460.0,0.0002,2]
[368301936,1751103043022,-460.0,0.0002,2]
[368301937,1751103043031,-460.0,0.0002,2]
[368301938,1751103043041,-790.9,0.0002,2]
[368301939,1751103043051,-2408.36,0.0002,2]
[368301940,1751103043060,-655.26651717,0.0002,2]
[368301942,1751103043069,-411.83573595,0.0002,2]
[368301944,1751103043079,-580.0,0.0002,2]
[368301946,1751103043088,-1799.67,0.0002,2]
[368301948,1751103043098,-460.0,0.0002,2]
[368301950,1751103043108,-460.0,0.0002,2]
[368301952,1751103043116,-460.0,0.0002,2]
[368301954,1751103043126,-18803.49168301,0.0002,2]
[368301956,1751103043136,-460.0,0.0002,2]
[368301957,1751103043145,-460.0,0.0002,2]
[368301959,1751103043154,-1694.8,0.0002,2]
[368301960,1751103043164,-460.0,0.0002,2]
[368301961,1751103043173,-460.0,0.0002,2]
[368301962,1751103043183,-460.0,0.0002,2]
[368301963,1751103043192,-460.0,0.0002,2]
[368301964,1751103043202,-460.0,0.0002,2]
[368301965,1751103043211,-1226.43,0.0002,2]
[368301966,1751103043221,-460.0,0.0002,2]
[368301967,1751103043230,-460.0,0.0002,2]
[368301968,1751103043242,-460.0,0.0002,2]
[368301969,1751103043253,-2755.62,0.0002,2]
[368301970,1751103043262,-1526.94,0.0002,2]
[368301971,1751103043271,-460.0,0.0002,2]
[368301973,1751103043280,-460.0,0.0002,2]
[368301974,1751103043290,-1147.67,0.0002,2]
[368301975,1751103043299,-460.0,0.0002,2]
[368301976,1751103043308,-460.0,0.0002,2]
[368301977,1751103043318,-1305.24,0.0002,2]
[368301978,1751103043327,-1126.91,0.0002,2]
[368301980,1751103043336,-160.0,0.0002,3]
[368301982,1751103043346,-781.08,0.0002,2]
[368301983,1751103043355,-3744.68,0.0002,2]
[368301984,1751103043365,-460.0,0.0002,2]
[368301985,1751103043375,-735.21,0.0002,2]
[368301986,1751103043384,-460.0,0.0002,2]
[368301988,1751103043394,-2137.25,0.0002,2]
[368301990,1751103043404,-500.0,0.00020043,2]
[368301991,1751103043413,-1200.0,0.00020071,2]
[368301992,1751103043422,-7839.96488608,0.00020107,2]
[368301993,1751103043432,-160.0,0.00020161,2]
[368301994,1751103043441,-214.95397287,0.00020161,2]
[368301996,1751103043451,-160.0,0.00020161,2]
[368301997,1751103043460,-213.78848551,0.00020161,2]
[368301999,1751103043469,-837.06984471,0.00020161,2]
[368302001,1751103043479,-12564.78152626,0.00020161,2]
[368302003,1751103043488,-160.0,0.00020161,2]
[368302005,1751103043497,-847.18566335,0.00020161,2]
[368302007,1751103043507,-160.0,0.00020161,2]
[368302009,1751103043516,-230.28494567,0.00020161,2]
[368302011,1751103043525,-160.0,0.00020161,2]
[368302013,1751103043535,-160.0,0.00020161,2]
[368302015,1751103043544,-368.96050447,0.00020174,2]
[368302017,1751103043554,-275.859555,0.00020187,2]
[368302019,1751103043563,-164.90033497,0.00020189,2]
[368302021,1751103043573,-195.0,0.00020228,2]
[368302023,1751103043583,-168.0,0.00020256,2]
[368302025,1751103043592,-460.0,0.00020273,2]
[368302028,1751103043601,-460.0,0.00020273,2]
[368302029,1751103043611,-460.0,0.00020273,2]
[368302031,1751103043620,-460.0,0.00020273,2]
[368302033,1751103043630,-460.0,0.00020273,2]
[368302034,1751103043639,-460.0,0.00020273,2]
[368302035,1751103043648,-460.0,0.00020273,2]
[368302037,1751103043657,-657.06,0.00020273,2]
[368302039,1751103043667,-460.0,0.00020273,2]
[368302041,1751103043676,-460.0,0.00020273,2]
[368302043,1751103043685,-460.0,0.00020273,2]
[368302044,1751103043694,-887.07,0.00020273,2]
[368302045,1751103043703,-460.0,0.00020273,2]
[368302046,1751103043713,-460.0,0.00020273,2]
[368302047,1751103043723,-460.0,0.00020273,2]
[368302048,1751103043732,-1946.55,0.00020273,2]
[368302049,1751103043741,-1074.55,0.00020273,2]
[368302050,1751103043750,-487.55,0.00020273,2]
[368302051,1751103043760,-515.69,0.00020273,2]
[368302052,1751103043769,-479.22,0.00020273,2]
[368302053,1751103043780,-570.58,0.00020273,2]
[368302054,1751103043790,-1279.61,0.00020273,2]
[368302055,1751103043800,-460.0,0.00020273,2]
[368302056,1751103043809,-752.69,0.00020273,2]
[368302057,1751103043819,-460.0,0.00020273,2]
[368302058,1751103043828,-1963.7,0.00020273,2]
[368302059,1751103043838,-460.0,0.00020273,2]
[368302060,1751103043847,-460.0,0.00020273,2]
[368302061,1751103043862,-2122.16,0.00020273,2]
[368302062,1751103043871,-460.0,0.00020273,2]
[368302063,1751103043880,-460.0,0.00020273,2]
[368302064,1751103043890,-325.19851885,0.00020273,2]
[368302065,1751103043899,-790.9,0.00020273,2]
[368302066,1751103043909,-2408.36,0.00020273,2]
[368302067,1751103043918,-580.0,0.00020273,2]
[368302068,1751103043928,-1799.67,0.00020273,2]
[368302069,1751103043937,-460.0,0.00020273,2]
[368302070,1751103043947,-460.0,0.00020273,2]
[368302071,1751103043956,-460.0,0.00020273,2]
[368302072,1751103043968,-460.0,0.00020273,2]
[368302073,1751103043979,-460.0,0.00020273,2]
[368302074,1751103043992,-1694.8,0.00020273,2]
[368302075,1751103044001,-460.0,0.00020273,2]
[368302076,1751103044010,-460.0,0.00020273,2]
[368302077,1751103044019,-460.0,0.00020273,2]
[368302078,1751103044029,-460.0,0.00020273,2]
[368302079,1751103044037,-460.0,0.00020273,2]
[368302080,1751103044047,-1226.43,0.00020273,2]
[368302081,1751103044056,-460.0,0.00020273,2]
[368302082,1751103044065,-460.0,0.00020273,2]
[368302083,1751103044075,-460.0,0.00020273,2]
[368302084,1751103044086,-2755.62,0.00020273,2]
[368302085,1751103044096,-1526.94,0.00020273,2]
[368302086,1751103044108,-460.0,0.00020273,2]
[368302087,1751103044118,-460.0,0.00020273,2]
[368302088,1751103044129,-1147.67,0.00020273,2]
[368302089,1751103044138,-460.0,0.00020273,2]
[368302090,1751103044149,-460.0,0.00020273,2]
[368302091,1751103044159,-1305.24,0.00020273,2]
[368302092,1751103044169,-1126.91,0.00020273,2]
[368302093,1751103044178,-781.08,0.00020273,2]
[368302094,1751103044187,-3744.68,0.00020273,2]
[368302095,1751103044196,-460.0,0.00020273,2]
[368302096,1751103044205,-735.21,0.00020273,2]
[368302097,1751103044215,-460.0,0.00020273,2]
[368302098,1751103044328,-2137.25,0.00020273,2]
[368302099,1751103044354,-1000.0,0.00020284,2]
[368302100,1751103044363,-238.79181011,0.00020296,2]
[368302101,1751103044372,-1000.0,0.00020308,2]
[368302102,1751103044382,-7839.96488608,0.00020314,3]
[368302103,1751103044391,-1000.0,0.00020348,2]
[368302104,1751103044400,-153.0,0.00020356,2]
[368302105,1751103044409,-177.5104021,0.00020356,2]
[368302106,1751103044418,-177.5104021,0.00020356,2]
[368302107,1751103044427,-159.266168,0.00020356,2]
[368302108,1751103044436,-177.5104021,0.00020356,2]
[368302109,1751103044446,-159.266168,0.00020356,2]
[368302110,1751103044455,-159.266168,0.00020384,2]
[368302111,1751103044467,-177.5104021,0.00020384,2]
[368302112,1751103044476,-159.266168,0.00020384,2]
[368302113,1751103044486,-159.266168,0.00020384,2]
[368302114,1751103044495,-177.5104021,0.00020384,2]
[368302115,1751103044505,-159.266168,0.00020384,2]
[368302116,1751103044514,-168.0,0.00020428,2]
[368302117,1751103044524,-12564.78152626,0.00020521,3]
[368302118,1751103044534,-213.78848551,0.00020521,3]
[368302119,1751103044543,-160.0,0.00020521,3]
[368302120,1751103044552,-7839.96488608,0.00020521,3]
[368302121,1751103044562,-411.05638163,0.00020547,2]
[368302122,1751103044572,-460.0,0.00020547,2]
[368302123,1751103044581,-460.0,0.00020547,2]
[368302124,1751103044591,-500.0,0.00020547,14]
[368302125,1751103044600,-460.0,0.00020547,2]
[368302126,1751103044609,-460.0,0.00020547,2]
[368302127,1751103044618,-460.0,0.00020547,2]
[368302128,1751103044628,-233.72015984,0.00020547,2]
[368302129,1751103044637,-657.06,0.00020547,2]
[368302130,1751103044647,-460.0,0.00020547,2]
[368302131,1751103044656,-460.0,0.00020547,2]
[368302132,1751103044665,-184.67396051,0.00020547,2]
[368302133,1751103044675,-887.07,0.00020547,2]
[368302134,1751103044686,-460.0,0.00020547,2]
[368302135,1751103044695,-460.0,0.00020547,2]
[368302136,1751103044704,-460.0,0.00020547,2]
[368302137,1751103044714,-1946.55,0.00020547,2]
[368302138,1751103044725,-1074.55,0.00020547,2]
[368302139,1751103044734,-487.55,0.00020547,2]
[368302140,1751103044743,-515.69,0.00020547,2]
[368302141,1751103044753,-479.22,0.00020547,2]
[368302142,1751103044762,-570.58,0.00020547,2]
[368302143,1751103044772,-1279.61,0.00020547,2]
[368302144,1751103044781,-460.0,0.00020547,2]
[368302145,1751103044790,-752.69,0.00020547,2]
[368302146,1751103044800,-460.0,0.00020547,2]
[368302147,1751103044810,-1963.7,0.00020547,2]
[368302148,1751103044819,-460.0,0.00020547,2]
[368302149,1751103044829,-460.0,0.00020547,2]
[368302150,1751103044838,-2122.16,0.00020547,2]
[368302151,1751103044847,-460.0,0.00020547,2]
[368302152,1751103044857,-460.0,0.00020547,2]
[368302153,1751103044866,-790.9,0.00020547,2]
[368302154,1751103044875,-2408.36,0.00020547,2]
[368302155,1751103044885,-580.0,0.00020547,2]
[368302156,1751103044895,-1799.67,0.00020547,2]
[368302157,1751103044904,-460.0,0.00020547,2]
[368302158,1751103044913,-460.0,0.00020547,2]
[368302159,1751103044922,-460.0,0.00020547,2]
[368302160,1751103044932,-460.0,0.00020547,2]
[368302161,1751103044941,-460.0,0.00020547,2]
[368302162,1751103044951,-1694.8,0.00020547,2]
[368302163,1751103044960,-460.0,0.00020547,2]
[368302164,1751103044972,-460.0,0.00020547,2]
[368302165,1751103044981,-460.0,0.00020547,2]
[368302166,1751103044990,-460.0,0.00020547,2]
[368302167,1751103044999,-460.0,0.00020547,2]
[368302168,1751103045008,-1226.43,0.00020547,2]
[368302169,1751103045018,-460.0,0.00020547,2]
[368302170,1751103045027,-460.0,0.00020547,2]
[368302171,1751103045036,-460.0,0.00020547,2]
[368302172,1751103045045,-2755.62,0.00020547,2]
[368302173,1751103045055,-1526.94,0.00020547,2]
[368302174,1751103045064,-460.0,0.00020547,2]
[368302175,1751103045073,-460.0,0.00020547,2]
[368302176,1751103045082,-1147.67,0.00020547,2]
[368302177,1751103045092,-460.0,0.00020547,2]
[368302178,1751103045101,-460.0,0.00020547,2]
[368302179,1751103045110,-1305.24,0.00020547,2]
[368302180,1751103045119,-1126.91,0.00020547,2]
[368302181,1751103045129,-781.08,0.00020547,2]
[368302182,1751103045138,-3744.68,0.00020547,2]
[368302183,1751103045147,-460.0,0.00020547,2]
[368302184,1751103045156,-735.21,0.00020547,2]
[368302185,1751103045166,-279.01896734,0.00020547,2]
[368302186,1751103045175,-153.0,0.00020548,2]
[368302187,1751103045185,-153.0,0.00020548,2]
[368302188,1751103045194,-25000.0,0.00020582,2]
[368302189,1751103045204,-666.0,0.00020582,2]
[368302190,1751103045213,-5000.0,0.00020582,2]
[368302191,1751103045223,-207.4,0.00020582,2]
[368302192,1751103045232,-500.0,0.00020582,2]
[368302193,1751103045244,-500.0,0.00020582,2]
[368302194,1751103045255,-500.0,0.00020582,2]
[368302195,1751103045264,-500.0,0.00020582,2]
[368302196,1751103045273,-500.0,0.00020582,2]
[368302197,1751103045283,-175.04864089,0.00020582,2]
[368302198,1751103045293,-500.0,0.00020582,2]
[368302199,1751103045303,-500.0,0.00020582,2]
[368302200,1751103045313,-500.0,0.00020582,2]
[368302201,1751103045324,-500.0,0.00020582,2]
[368302202,1751103045334,-500.0,0.00020582,2]
[368302203,1751103045344,-500.0,0.00020582,2]
[368302204,1751103045353,-500.0,0.00020582,2]
[368302205,1751103045363,-500.0,0.00020582,2]
[368302206,1751103045373,-500.0,0.00020582,2]
[368302207,1751103045383,-500.0,0.00020582,2]
[368302208,1751103045394,-500.0,0.00020582,2]
[368302209,1751103045404,-500.0,0.00020582,2]
[368302210,1751103045415,-500.0,0.00020582,2]
[368302211,1751103045426,-500.0,0.00020582,2]
[368302212,1751103045435,-1000.0,0.00020591,2]
[368302213,1751103045445,-3418.08,0.000206,2]
[368302214,1751103045455,-690.642,0.00020637,2]
[368302215,1751103045466,-454.028,0.00020667,2]
[368302216,1751103045475,-716.195754,0.00020692,2]
[368302217,1751103045484,-7839.96488608,0.00020728,3]
[368302218,1751103045494,-742.6949969,0.00020747,2]
[368302219,1751103045503,-195.0,0.00020757,2]
[368302220,1751103045512,-153.0,0.00020767,2]
[368302221,1751103045521,-770.17471178,0.00020802,2]
[368302222,1751103045531,-536.641073,0.00020821,2]
[368302223,1751103045540,-460.0,0.00020821,2]
[368302224,1751103045550,-460.0,0.00020821,2]
[368302225,1751103045559,-460.0,0.00020821,2]
[368302226,1751103045568,-460.0,0.00020821,2]
[368302227,1751103045577,-657.06,0.00020821,2]
[368302228,1751103045587,-460.0,0.00020821,2]
[368302229,1751103045597,-460.0,0.00020821,2]
[368302230,1751103045606,-887.07,0.00020821,2]
[368302231,1751103045615,-460.0,0.00020821,2]
[368302232,1751103045626,-460.0,0.00020821,2]
[368302233,1751103045636,-1946.55,0.00020821,2]
[368302234,1751103045645,-1074.55,0.00020821,2]
[368302235,1751103045654,-487.55,0.00020821,2]
[368302236,1751103045663,-515.69,0.00020821,2]
[368302237,1751103045673,-479.22,0.00020821,2]
[368302238,1751103045682,-570.58,0.00020821,2]
[368302239,1751103045691,-1279.61,0.00020821,2]
[368302240,1751103045701,-460.0,0.00020821,2]
[368302241,1751103045711,-752.69,0.00020821,2]
[368302242,1751103045722,-460.0,0.00020821,2]
[368302243,1751103045731,-1963.7,0.00020821,2]
[368302244,1751103045740,-460.0,0.00020821,2]
[368302245,1751103045750,-460.0,0.00020821,2]
[368302246,1751103045759,-2122.16,0.00020821,2]
[368302247,1751103045768,-460.0,0.00020821,2]
[368302248,1751103045778,-460.0,0.00020821,2]
[368302249,1751103045788,-790.9,0.00020821,2]
[368302250,1751103045797,-2408.36,0.00020821,2]
[368302251,1751103045806,-580.0,0.00020821,2]
[368302252,1751103045815,-1799.67,0.00020821,2]
[368302253,1751103045824,-460.0,0.00020821,2]
[368302254,1751103045834,-460.0,0.00020821,2]
[368302255,1751103045843,-460.0,0.00020821,2]
[368302256,1751103045853,-460.0,0.00020821,2]
[368302257,1751103045863,-460.0,0.00020821,2]
[368302258,1751103045872,-1694.8,0.00020821,2]
[368302259,1751103045882,-460.0,0.00020821,2]
[368302260,1751103045891,-460.0,0.00020821,2]
[368302261,1751103045901,-460.0,0.00020821,2]
[368302262,1751103045911,-460.0,0.00020821,2]
[368302263,1751103045920,-460.0,0.00020821,2]